Workbook

Sheet Sheet1
A2: Starting salary | B2: 25000 | H2: year | I2: age | J2: RPI | K2: salary (boy) | L2: pen cont | M2: pen pot (eoy) | N2: cum pen cont | O2: CARE | P2: inv ret
A3: Pension contribution | B3: 8% | H3: 2023 | I3: =start_age -> 21 | J3: 1 | K3: =B2 -> 25,000 | L3: =K3*pencont -> 2,000 | M3: =L3*(1+P3)^(0.5) -> 2,040 | N3: =L3*(1+pen_cont_roll_up)^(0.5) -> 2,020 | O3: =K3 -> 25,000 | P3: =investment+(INT(RAND()*2)*2-1)*inv_vol -> 4%
A4: inflation | B4: 2% | H4: =H3+1 -> 2024 | I4: =I3+1 -> 22 | J4: =J3*(1+RPI) -> 1.02 | K4: =K3*(1+NAE+promadd) -> 26,000 | L4: 2,080 | M4: =M3*(1+P4)+L4*(1+P4)^0.5 -> 4,242 | N4: =N3*(1+pen_cont_roll_up)+L4*(1+pen_cont_roll_up)^0.5 -> 4,161 | O4: =((O3)*(I4-start_age)*(1+RPI)+K4)/(I4-start_age+1) -> 25,750 | P4: 4%
A5: average earnings | B5: 3% | H5: =H4+1 -> 2025 | I5: =I4+1 -> 23 | J5: 1.04 | K5: 27,040 | L5: 2,163 | M5: =M4*(1+P5)+L5*(1+P5)^0.5 -> 6,618 | N5: 6,429 | O5: 26,523 | P5: 4%
A6: promotional addition | B6: 1% | H6: 2026 | I6: 24 | J6: 1.06 | K6: 28,122 | L6: 2,250 | M6: 9,177 | N6: 8,830 | O6: 27,321 | P6: 4%
A7: investment return | B7: 4% | H7: 2027 | I7: 25 | J7: 1.08 | K7: 29,246 | L7: 2,340 | M7: 11,930 | N7: 11,369 | O7: 28,143 | P7: 4%
A8: volatility | B8: 0% | H8: 2028 | I8: 26 | J8: 1.10 | K8: 30,416 | L8: 2,433 | M8: 14,889 | N8: 14,054 | O8: 28,991 | P8: 4%
A9: pen cont roll up | B9: 2% | H9: 2029 | I9: 27 | J9: 1.13 | K9: 31,633 | L9: 2,531 | M9: 18,065 | N9: 16,891 | O9: 29,865 | P9: 4%
A10: start age | B10: 21 | H10: =H9+1 -> 2030 | I10: =I9+1 -> 28 | J10: 1.15 | K10: 32,898 | L10: 2,632 | M10: 21,472 | N10: 19,887 | O10: 30,767 | P10: 4%
A11: ret age | B11: 65 | H11: 2031 | I11: 29 | J11: 1.17 | K11: 34,214 | L11: 2,737 | M11: 25,122 | N11: 23,049 | O11: 31,697 | P11: 4%
A12: Annuity | B12: =94-NRA -> 29 | H12: 2032 | I12: 30 | J12: 1.20 | K12: 35,583 | L12: 2,847 | M12: 29,030 | N12: 26,385 | O12: 32,656 | P12: 4%
A13: Accrual | B13: 60 | H13: 2033 | I13: 31 | J13: 1.22 | K13: 37,006 | L13: 2,960 | M13: 33,210 | N13: 29,903 | O13: 33,645 | P13: 4%
A14: max years | B14: 40 | H14: 2034 | I14: 32 | J14: 1.24 | K14: 38,486 | L14: 3,079 | M14: 37,679 | N14: 33,610 | O14: 34,666 | P14: 4%
H15: 2035 | I15: 33 | J15: 1.27 | K15: 40,026 | L15: 3,202 | M15: 42,451 | N15: 37,516 | O15: 35,718 | P15: 4%
H16: 2036 | I16: 34 | J16: 1.29 | K16: 41,627 | L16: 3,330 | M16: 47,545 | N16: 41,630 | O16: 36,803 | P16: 4%
H17: 2037 | I17: 35 | J17: 1.32 | K17: 43,292 | L17: 3,463 | M17: 52,979 | N17: 45,960 | O17: 37,923 | P17: 4%
B18: actual (at NRA) | C18: real terms (2022) | D18: value | E18: Cost | F18: ratio | H18: 2038 | I18: 36 | J18: 1.35 | K18: 45,024 | L18: 3,602 | M18: 58,771 | N18: 50,517 | O18: 39,078 | P18: 4%
A19: Final salary | B19: =VLOOKUP(NRA,table,3,FALSE) -> 140,413 | C19: =B19/VLOOKUP(NRA,table,2,FALSE) -> 58,749 | H19: 2039 | I19: 37 | J19: 1.37 | K19: 46,825 | L19: 3,746 | M19: 64,943 | N19: 55,311 | O19: 40,269 | P19: 4%
A20: Final salary pension | B20: =MIN(40,NRA-start_age)/accrual*B19 -> 93,609 | C20: =B20/VLOOKUP(NRA,table,2,FALSE) -> 39,166 | D20: =B12*B20 -> 2,714,649 | E20: =VLOOKUP(NRA,table,6,FALSE) -> 343,719 | F20: =D20/E20 -> 7.898 | H20: 2040 | I20: 38 | J20: 1.40 | K20: 48,698 | L20: 3,896 | M20: 71,513 | N20: 60,352 | O20: 41,498 | P20: 4%
A21: CARE | B21: =VLOOKUP(NRA,table,7,FALSE) -> 94,537 | C21: =B21/VLOOKUP(NRA,table,2,FALSE) -> 39,554 | H21: 2041 | I21: 39 | J21: 1.43 | K21: 50,645 | L21: 4,052 | M21: 78,506 | N21: 65,651 | O21: 42,766 | P21: 4%
A22: CARE pension | B22: =MIN(40,NRA-start_age)/accrual*B21 -> 63,024 | C22: =B22/VLOOKUP(NRA,table,2,FALSE) -> 26,369 | D22: =B22*B12 -> 1,827,710 | E22: =VLOOKUP(NRA,table,6,FALSE) -> 343,719 | F22: =D22/E22 -> 5.317 | H22: 2042 | I22: 40 | J22: 1.46 | K22: 52,671 | L22: 4,214 | M22: 85,943 | N22: 71,219 | O22: 44,073 | P22: 4%
A23: DC | B23: =D23/B12 -> 17,776 | C23: =B23/VLOOKUP(NRA,table,2,FALSE) -> 7,437 | D23: =VLOOKUP(NRA,table,5,FALSE) -> 515,497 | H23: 2043 | I23: 41 | J23: 1.49 | K23: 54,778 | L23: 4,382 | M23: 93,850 | N23: 77,069 | O23: 45,423 | P23: 4%
H24: 2044 | I24: 42 | J24: 1.52 | K24: 56,969 | L24: 4,558 | M24: 102,251 | N24: 83,214 | O24: 46,815 | P24: 4%
H25: 2045 | I25: 43 | J25: 1.55 | K25: 59,248 | L25: 4,740 | M25: 111,175 | N25: 89,665 | O25: 48,251 | P25: 4%
H26: 2046 | I26: 44 | J26: 1.58 | K26: 61,618 | L26: 4,929 | M26: 120,649 | N26: 96,437 | O26: 49,733 | P26: 4%
H27: 2047 | I27: 45 | J27: 1.61 | K27: 64,083 | L27: 5,127 | M27: 130,703 | N27: 103,543 | O27: 51,262 | P27: 4%
H28: 2048 | I28: 46 | J28: 1.64 | K28: 66,646 | L28: 5,332 | M28: 141,369 | N28: 110,999 | O28: 52,839 | P28: 4%
H29: 2049 | I29: 47 | J29: 1.67 | K29: 69,312 | L29: 5,545 | M29: 152,678 | N29: 118,819 | O29: 54,467 | P29: 4%
H30: 2050 | I30: 48 | J30: 1.71 | K30: 72,084 | L30: 5,767 | M30: 164,666 | N30: 127,019 | O30: 56,146 | P30: 4%
H31: 2051 | I31: 49 | J31: 1.74 | K31: 74,968 | L31: 5,997 | M31: 177,369 | N31: 135,617 | O31: 57,880 | P31: 4%
H32: 2052 | I32: 50 | J32: 1.78 | K32: 77,966 | L32: 6,237 | M32: 190,825 | N32: 144,629 | O32: 59,668 | P32: 4%
H33: 2053 | I33: 51 | J33: 1.81 | K33: 81,085 | L33: 6,487 | M33: 205,073 | N33: 154,072 | O33: 61,514 | P33: 4%
H34: 2054 | I34: 52 | J34: 1.85 | K34: 84,328 | L34: 6,746 | M34: 220,156 | N34: 163,967 | O34: 63,419 | P34: 4%
H35: 2055 | I35: 53 | J35: 1.88 | K35: 87,701 | L35: =K35*pencont -> 7,016 | M35: 236,117 | N35: 174,333 | O35: 65,384 | P35: =investment+(INT(RAND()*2)*2-1)*inv_vol -> 4%
H36: 2056 | I36: 54 | J36: =J35*(1+RPI) -> 1.92 | K36: =K35*(1+NAE+promadd) -> 91,210 | L36: 7,297 | M36: 253,003 | N36: =N35*(1+pen_cont_roll_up)+L36*(1+pen_cont_roll_up)^0.5 -> 185,189 | O36: =((O35)*(I36-start_age)*(1+RPI)+K36)/(I36-start_age+1) -> 67,413 | P36: 4%
H37: 2057 | I37: 55 | J37: 1.96 | K37: 94,858 | L37: 7,589 | M37: 270,862 | N37: 196,557 | O37: 69,507 | P37: 4%
H38: =H37+1 -> 2058 | I38: =I37+1 -> 56 | J38: 2.00 | K38: 98,652 | L38: 7,892 | M38: 289,745 | N38: 208,458 | O38: 71,668 | P38: 4%
H39: 2059 | I39: 57 | J39: 2.04 | K39: 102,598 | L39: 8,208 | M39: 309,705 | N39: 220,917 | O39: 73,899 | P39: 4%
H40: 2060 | I40: 58 | J40: 2.08 | K40: 106,702 | L40: 8,536 | M40: 330,799 | N40: 233,957 | O40: 76,201 | P40: 4%
H41: 2061 | I41: 59 | J41: 2.12 | K41: 110,970 | L41: 8,878 | M41: 353,084 | N41: 247,602 | O41: 78,578 | P41: 4%
H42: 2062 | I42: 60 | J42: 2.16 | K42: 115,409 | L42: 9,233 | M42: 376,623 | N42: 261,878 | O42: 81,031 | P42: 4%
H43: 2063 | I43: 61 | J43: 2.21 | K43: 120,026 | L43: 9,602 | M43: 401,480 | N43: 276,813 | O43: 83,563 | P43: 4%
H44: 2064 | I44: 62 | J44: 2.25 | K44: 124,827 | L44: 9,986 | M44: 427,723 | N44: 292,435 | O44: 86,177 | P44: 4%
H45: 2065 | I45: 63 | J45: 2.30 | K45: 129,820 | L45: 10,386 | M45: 455,423 | N45: 308,773 | O45: 88,875 | P45: 4%
H46: 2066 | I46: 64 | J46: 2.34 | K46: 135,012 | L46: 10,801 | M46: 484,655 | N46: 325,857 | O46: 91,661 | P46: 4%
H47: 2067 | I47: 65 | J47: 2.39 | K47: 140,413 | L47: 11,233 | M47: 515,497 | N47: 343,719 | O47: 94,537 | P47: 4%
H48: =H47+1 -> 2068 | I48: =I47+1 -> 66 | J48: 2.44 | K48: 146,029 | L48: 11,682 | M48: 548,031 | N48: 362,392 | O48: 97,506 | P48: 4%
H49: 2069 | I49: 67 | J49: 2.49 | K49: 151,871 | L49: 12,150 | M49: 582,342 | N49: 381,910 | O49: 100,571 | P49: 4%
H50: 2070 | I50: 68 | J50: 2.54 | K50: 157,945 | L50: 12,636 | M50: 618,522 | N50: 402,310 | O50: 103,736 | P50: 4%
H51: 2071 | I51: 69 | J51: 2.59 | K51: 164,263 | L51: 13,141 | M51: 656,664 | N51: 423,628 | O51: 107,004 | P51: 4%
H52: 2072 | I52: 70 | J52: 2.64 | K52: 170,834 | L52: 13,667 | M52: 696,868 | N52: 445,903 | O52: 110,377 | P52: 4%
